[Event "ISR Youth-Ch Finals 2021 U16"]
[Site "Ramat Hasharon"]
[Date "2021.03.26"]
[Round "9.5"]
[White "Rivlin, Shachar"]
[Black "Aizenberg, Benny"]
[Result "0-1"]
[ECO "D87"]
[WhiteElo "1918"]
[BlackElo "2307"]
[Annotator "ChessBase"]
[PlyCount "122"]
[EventDate "2021.03.19"]
[EventType "swiss"]
[EventCountry "ISR"]
[SourceTitle "playchess.com"]
[Source "ChessBase"]
[SourceQuality "1"]
[TimeControl "5400+30"]

1. d4 {[%emt 0:00:05]} Nf6 {[%emt 0:00:00]} 2. c4 {[%emt 0:00:11]} g6 {[%emt 0:00:00]} 3. Nc3 {[%emt 0:00:10]} d5 {[%emt 0:00:00]} 4. cxd5 {[%emt 0:00:07]} Nxd5 {[%emt 0:00:00]} 5. e4 {[%emt 0:00:10]} Nxc3 {[%emt 0:00:00]} 6. bxc3 {[%emt 0:00:07]} Bg7 {[%emt 0:00:00]} 7. Bc4 {[%emt 0:00:17]} c5 {[%emt 0:00:00]} 8. Ne2 {[%emt 0:00:08]} Nc6 {[%emt 0:00:00]} 9. Be3 {[%emt 0:00:07]} O-O {[%emt 0:00:01]} 10. O-O {[%emt 0:00:06]} Bg4 {[%emt 0:00:05]} 11. f3 {[%emt 0:00:09]} Bd7 {[%emt 0:00:02]} 12. Rb1 {[%emt 0:00:39]} Qc7 {[%emt 0:00:21]} 13. Qd2 {[%emt 0:00:31]} Rfd8 {[%emt 0:00:18]} 14. Rfc1 {[%emt 0:02:32]} Be8 {[%emt 0:03:43]} 15. f4 {[%emt 0:04:52]} Rac8 {[%emt 0:03:48]} 16. Bd3 {[%emt 0:08:57]} e6 {[%emt 0:07:04]} 17. f5 {[%emt 0:11:03]} exf5 {[%emt 0:11:44]} 18. exf5 {[%emt 0:01:08]} cxd4 {[%emt 0:17:10]} 19. cxd4 {[%emt 0:02:29]} Qe7 {[%emt 0:04:41]} 20. Bg5 {[%emt 0:08:07]} Bf6 {[%emt 0:01:32]} 21. Bxf6 {[%emt 0:13:01]} Qxf6 {[%emt 0:00:02]} 22. fxg6 {[%emt 0:11:55]} hxg6 {[%emt 0:02:48]} 23. Rf1 {[%emt 0:00:58]} Qe7 {[%emt 0:02:56]} 24. Rf4 {[%emt 0:03:10]} Rd6 {[%emt 0:06:03]} 25. Rbf1 {[%emt 0:04:57]} Nd8 {[%emt 0:08:35]} 26. Re4 {[%emt 0:00:59]} Re6 {[%emt 0:00:06]} 27. Rff4 {[%emt 0:02:11]} Bc6 {[%emt 0:02:36]} 28. d5 {[%emt 0:03:28]} Bxd5 {[%emt 0:06:59]} 29. Rd4 {[%emt 0:00:51]} Qg5 {[%emt 0:04:29]} 30. Ng3 {[%emt 0:06:53]} Nc6 {[%emt 0:02:18]} 31. Bxg6 {[%emt 0:09:20]} Re1+ {[%emt 0:10:23]} 32. Qxe1 {[%emt 0:00:56]} Nxd4 {[%emt 0:00:01]} 33. Bxf7+ {[%emt 0:03:49]} Bxf7 {[%emt 0:00:01]} 34. Rxd4 {[%emt 0:00:52]} Rc1 {[%emt 0:02:02]} 35. Rd1 {[%emt 0:01:41]} Rxd1 {[%emt 0:01:26]} 36. Qxd1 {[%emt 0:00:12]} Bxa2 {[%emt 0:00:04]} 37. Qe1 {[%emt 0:00:46]} Qg6 {[%emt 0:00:34]} 38. Qe2 {[%emt 0:00:32]} Bd5 {[%emt 0:00:36]} 39. Nf1 {[%emt 0:00:32]} b5 {[%emt 0:03:42]} 40. Ne3 {[%emt 0:00:26]} Qe4 {[%emt 0:00:02]} 41. Qd2 {[%emt 0:00:24]} Bf7 {[%emt 0:00:17]} 42. Qd8+ {[%emt 0:00:30]} Kh7 {[%emt 0:00:07]} 43. Qg5 {[%emt 0:00:23]} b4 {[%emt 0:00:08]} 44. h4 {[%emt 0:00:34]} Qg6 {[%emt 0:03:09]} 45. Qe5 {[%emt 0:00:41]} b3 {[%emt 0:01:18]} 46. h5 {[%emt 0:00:31]} Qxh5 {[%emt 0:00:55]} 47. Nf5 {[%emt 0:00:18]} Qg5 {[%emt 0:00:28]} 48. Qh2+ {[%emt 0:00:08]} Kg6 {[%emt 0:00:15]} 49. Nh4+ {[%emt 0:00:27]} Kg7 {[%emt 0:00:01]} 50. Qh3 {[%emt 0:01:01]} b2 {[%emt 0:01:22]} 51. Qc3+ {[%emt 0:00:10]} Qf6 {[%emt 0:00:31]} 52. Qg3+ {[%emt 0:00:12]} Bg6 {[%emt 0:00:10]} 53. Qc7+ {[%emt 0:00:08]} Kh6 {[%emt 0:00:03]} 54. Nf5+ {[%emt 0:01:14]} Qxf5 {[%emt 0:00:35]} 55. Qh2+ {[%emt 0:00:12]} Kg7 {[%emt 0:00:30]} 56. Qc7+ {[%emt 0:00:03]} Bf7 {[%emt 0:00:29]} 57. Qg3+ {[%emt 0:01:11]} Bg6 {[%emt 0:00:15]} 58. Qc3+ {[%emt 0:00:19]} Qf6 {[%emt 0:00:02]} 59. Qc7+ {[%emt 0:00:18]} Kh6 {[%emt 0:00:01]} 60. Qh2+ {[%emt 0:01:17]} Bh5 {[%emt 0:00:01]} 61. Qb8 {[%emt 0:00:33]} Qb6+ {[%emt 0:00:03]} 0-1